fUSD/lending_fUSD_20250108
["ID","MTS","AMOUNT","RATE_DAILY","PERIOD"]
[348089204,1736305834700,-500.0,9.998e-05,2]
[348089205,1736305834709,-500.0,9.998e-05,2]
[348089206,1736305834719,-532.42,9.998e-05,2]
[348089207,1736305834728,-500.0,9.998e-05,2]
[348089208,1736305834738,-500.0,9.998e-05,2]
[348089209,1736305834747,-500.0,9.998e-05,2]
[348089210,1736305834757,-579.14,9.998e-05,2]
[348089211,1736305834766,-500.0,9.998e-05,2]
[348089212,1736305834775,-1922.62,9.998e-05,2]
[348089213,1736305834785,-500.0,9.998e-05,2]
[348089214,1736305834795,-500.0,9.998e-05,2]
[348089215,1736305834805,-500.0,9.998e-05,2]
[348089216,1736305834814,-654.16,9.998e-05,2]
[348089217,1736305834824,-500.0,9.998e-05,2]
[348089218,1736305834834,-500.0,9.998e-05,2]
[348089219,1736305834848,-500.0,9.998e-05,2]
[348089220,1736305834858,-500.0,9.998e-05,2]
[348089221,1736305834867,-500.0,9.998e-05,2]
[348089222,1736305834877,-1807.66,9.998e-05,2]
[348089223,1736305834887,-500.0,9.998e-05,2]
[348089224,1736305834896,-500.0,9.998e-05,2]
[348089225,1736305834906,-500.0,9.998e-05,2]
[348089226,1736305834915,-500.0,9.998e-05,2]
[348089227,1736305834924,-599.07,9.998e-05,2]
[348089228,1736305834934,-500.0,9.998e-05,2]
[348089229,1736305834944,-501.5434127,9.998e-05,2]
[348089230,1736305834953,-500.0,9.998e-05,2]
[348089231,1736305834963,-500.0,9.998e-05,2]
[348089232,1736305834972,-3905.59,9.998e-05,2]
[348089233,1736305834981,-500.0,9.998e-05,2]
[348089234,1736305834991,-500.0,9.998e-05,2]
[348089235,1736305835001,-500.0,9.998e-05,2]
[348089236,1736305835010,-500.0,9.998e-05,2]
[348089237,1736305835019,-505.43888186,9.998e-05,2]
[348089238,1736305835029,-500.0,9.998e-05,2]
[348089239,1736305835038,-500.0,9.998e-05,2]
[348089240,1736305835048,-589.19,9.998e-05,2]
[348089241,1736305835057,-534.34709388,9.998e-05,2]
[348089242,1736305835066,-500.0,9.998e-05,2]
[348089243,1736305835076,-457.27422116,9.998e-05,2]
[348089244,1736305835085,-500.0,9.998e-05,2]
[348089245,1736305835099,-500.0,9.998e-05,2]
[348089246,1736305835109,-500.0,9.998e-05,2]
[348089247,1736305835119,-500.0,9.998e-05,2]
[348089248,1736305835128,-500.0,9.998e-05,2]
[348089249,1736305835138,-500.0,9.998e-05,2]
[348089250,1736305835148,-500.0,9.998e-05,2]
[348089251,1736305835157,-500.0,9.998e-05,2]
[348089252,1736305835166,-1308.03,9.998e-05,2]
[348089253,1736305835176,-500.0,9.998e-05,2]
[348089254,1736305835186,-500.0,9.998e-05,2]
[348089255,1736305835195,-508.56711051,9.998e-05,2]
[348089256,1736305835205,-500.0,9.998e-05,2]
[348089257,1736305835214,-196.70568866,9.998e-05,2]
[348089258,1736305835224,-500.0,9.998e-05,2]
[348089259,1736305835234,-500.0,9.998e-05,2]
[348089260,1736305835243,-500.0,9.998e-05,2]
[348089261,1736305835253,-505.9800125,9.998e-05,2]
[348089262,1736305835263,-186.06038603,9.998e-05,2]
[348089263,1736305835274,-508.60558585,9.998e-05,2]
[348089264,1736305835285,-500.0,9.998e-05,2]
[348089265,1736305835294,-527.59211588,9.998e-05,2]
[348089266,1736305835303,-500.0,9.998e-05,2]
[348089267,1736305835313,-500.0,9.998e-05,2]
[348089268,1736305835322,-512.29932135,9.998e-05,2]
[348089269,1736305835332,-500.0,9.998e-05,2]
[348089270,1736305835343,-506.02401464,9.998e-05,2]
[348089271,1736305835352,-500.0,9.998e-05,2]
[348089272,1736305835362,-500.0,9.998e-05,2]
[348089273,1736305835371,-500.0,9.998e-05,2]
[348089274,1736305835380,-500.0,9.998e-05,2]
[348089275,1736305835390,-500.0,9.998e-05,2]
[348089276,1736305835400,-505.34349366,9.998e-05,2]
[348089277,1736305835409,-500.0,9.998e-05,2]
[348089278,1736305835419,-167.26203265,9.998e-05,2]
[348089279,1736305835429,-507.58615335,9.998e-05,2]
[348089280,1736305835441,-500.0,9.998e-05,2]
[348089281,1736305835451,-500.0,9.998e-05,2]
[348089282,1736305835460,-512.0472357,9.998e-05,2]
[348089283,1736305835471,-500.0,9.998e-05,2]
[348089284,1736305835483,-520.24859599,9.998e-05,2]
[348089285,1736305835492,-586.11841025,9.998e-05,2]
[348089286,1736305835501,-500.0,9.998e-05,2]
[348089287,1736305835512,-500.0,9.998e-05,2]
[348089288,1736305835521,-504.14569512,9.998e-05,2]
[348089289,1736305835531,-490.0,9.998e-05,2]
[348089290,1736305835540,-505.07867709,9.998e-05,2]
[348089291,1736305835549,-500.0,9.998e-05,2]
[348089292,1736305835559,-513.27436111,9.998e-05,2]
[348089293,1736305835568,-500.0,9.998e-05,2]
[348089294,1736305835578,-500.0,9.998e-05,2]
[348089295,1736305835587,-507.17632937,9.998e-05,2]
[348089296,1736305835600,-502.06210704,9.998e-05,2]
[348089297,1736305835610,-500.0,9.998e-05,2]
[348089298,1736305835620,-503.70133252,9.998e-05,2]
[348089299,1736305835630,-500.0,9.998e-05,2]
[348089300,1736305835639,-500.0,9.998e-05,2]
[348089301,1736305835649,-500.0,9.998e-05,2]
[348089302,1736305835658,-500.0,9.998e-05,2]
[348089303,1736305835668,-500.0,9.998e-05,2]
[348089304,1736305835679,-500.0,9.998e-05,2]
[348089305,1736305835688,-524.64,9.998e-05,2]
[348089306,1736305835698,-500.0,9.998e-05,2]
[348089307,1736305835709,-500.0,9.998e-05,2]
[348089308,1736305835718,-500.0,9.998e-05,2]
[348089309,1736305835898,-501.86701556,9.998e-05,2]
[348089310,1736305835908,-508.48151512,9.998e-05,2]
[348089311,1736305835918,-500.0,9.998e-05,2]
[348089312,1736305835928,-567.75995389,9.998e-05,2]
[348089313,1736305835938,-500.0,9.998e-05,2]
[348089314,1736305835947,-500.0,9.998e-05,2]
[348089315,1736305835957,-505.12082893,9.998e-05,2]
[348089316,1736305835966,-500.0,9.998e-05,2]
[348089317,1736305835975,-500.0,9.998e-05,2]
[348089318,1736305835985,-500.0,9.998e-05,2]
[348089319,1736305835994,-504.89048461,9.998e-05,2]
[348089320,1736305836004,-500.0,9.998e-05,2]
[348089321,1736305836014,-500.0,9.998e-05,2]
[348089322,1736305836024,-500.0,9.998e-05,2]
[348089323,1736305836033,-500.0,9.998e-05,2]
[348089324,1736305836044,-500.0,9.998e-05,2]
[348089325,1736305836054,-500.0,9.998e-05,2]
[348089326,1736305836063,-500.0,9.998e-05,2]
[348089327,1736305836073,-500.0,9.998e-05,2]
[348089328,1736305836083,-500.0,9.998e-05,2]
[348089329,1736305836092,-500.0,9.998e-05,2]
[348089330,1736305836102,-500.0,9.998e-05,2]
[348089331,1736305836111,-500.0,9.998e-05,2]
[348089332,1736305836122,-503.97492324,9.998e-05,2]
[348089333,1736305836132,-500.0,9.998e-05,2]
[348089334,1736305836141,-500.0,9.998e-05,2]
[348089335,1736305836151,-500.0,9.998e-05,2]
[348089336,1736305836160,-500.0,9.998e-05,2]
[348089337,1736305836170,-500.0,9.998e-05,2]
[348089338,1736305836179,-500.0,9.998e-05,2]
[348089339,1736305836189,-500.0,9.998e-05,2]
[348089340,1736305836198,-504.22967894,9.998e-05,2]
[348089341,1736305836208,-500.0,9.998e-05,2]
[348089342,1736305836217,-501.85653711,9.998e-05,2]
[348089343,1736305836226,-500.0,9.998e-05,2]
[348089344,1736305836236,-500.0,9.998e-05,2]
[348089345,1736305836245,-500.0,9.998e-05,2]
[348089346,1736305836254,-506.66404553,9.998e-05,2]
[348089347,1736305836263,-500.0,9.998e-05,2]
[348089348,1736305836273,-500.0,9.998e-05,2]
[348089349,1736305836282,-500.0,9.998e-05,2]
[348089350,1736305836291,-175.49571954,9.998e-05,2]
[348089351,1736305836300,-500.0,9.998e-05,2]
[348089352,1736305836309,-500.0,9.998e-05,2]
[348089353,1736305836319,-505.89757282,9.998e-05,2]
[348089354,1736305836328,-500.0,9.998e-05,2]
[348089355,1736305836337,-825.68,9.999e-05,2]
[348089356,1736305836349,-1356.01,9.999e-05,2]
[348089357,1736305836358,-535.11,9.999e-05,2]
[348089358,1736305836368,-500.0,9.999e-05,2]
[348089359,1736305836378,-745.32,9.999e-05,2]
[348089360,1736305836387,-151.602437,9.999e-05,2]
[348089361,1736305836396,-774.59,9.999e-05,2]
[348089362,1736305836406,-1703.89,9.999e-05,2]
[348089363,1736305836415,-588.19,9.999e-05,2]
[348089364,1736305836424,-1704.23,9.999e-05,2]
[348089365,1736305836437,-755.37,9.999e-05,2]
[348089366,1736305836446,-1250.08,9.999e-05,2]
[348089367,1736305836455,-510.17964893,9.999e-05,2]
[348089368,1736305836465,-598.12,9.999e-05,2]
[348089369,1736305836475,-639.55,9.999e-05,2]
[348089370,1736305836484,-741.28,9.999e-05,2]
[348089371,1736305836494,-649.34,9.999e-05,2]
[348089372,1736305836505,-500.0,9.999e-05,2]
[348089373,1736305836515,-1202.3,9.999e-05,2]
[348089374,1736305836525,-658.5,9.999e-05,2]
[348089375,1736305836534,-500.0,9.999e-05,2]
[348089376,1736305836543,-500.0,9.999e-05,2]
[348089377,1736305836553,-3097.2,9.999e-05,2]
[348089378,1736305836562,-500.0,9.999e-05,2]
[348089379,1736305836572,-500.0,9.999e-05,2]
[348089380,1736305836581,-1259.17,9.999e-05,2]
[348089381,1736305836590,-500.0,9.999e-05,2]
[348089382,1736305836602,-500.0,9.999e-05,2]
[348089383,1736305836612,-1363.42,9.999e-05,2]
[348089384,1736305836621,-678.21,9.999e-05,2]
[348089385,1736305836631,-500.0,9.999e-05,2]
[348089386,1736305836640,-733.42,9.999e-05,2]
[348089387,1736305836650,-500.0,9.999e-05,2]
[348089388,1736305836659,-500.0,9.999e-05,2]
[348089389,1736305836669,-3384.83629,9.999e-05,2]
[348089390,1736305836679,-500.0,9.999e-05,2]
[348089391,1736305836688,-500.0,9.999e-05,2]
[348089392,1736305836697,-1663.19,9.999e-05,2]
[348089393,1736305836707,-2043.21,9.999e-05,2]
[348089394,1736305836716,-3415.2265135,9.999e-05,2]
[348089395,1736305836725,-500.0,9.999e-05,2]
[348089396,1736305836735,-690.93,9.999e-05,2]
[348089397,1736305836744,-2131.7,9.999e-05,2]
[348089398,1736305836753,-712.04,9.999e-05,2]
[348089399,1736305836762,-500.0,9.999e-05,2]
[348089400,1736305836771,-500.0,9.999e-05,2]
[348089401,1736305836781,-164521.15440599,0.0001,2]
[348089402,1736305836790,-507141.11551669,0.0001,2]
[348089403,1736305836811,-633.91785618,0.0001,2]
[348089404,1736305836823,-1238.04,0.0001,2]
[348089405,1736305836871,-388.59141856,9.998e-05,2]
[348089406,1736305836883,-111.40858144,9.998e-05,2]
[348089407,1736305836893,-90717.89206476,0.0001,2]
[348089408,1736305836902,-19782.15366049,0.0001,2]
[348089409,1736305836912,-979.1931,0.0001,2]
[348089410,1736305836922,-1000.0,0.0001,2]
[348089411,1736305836931,-151.0,0.0001,2]
[348089412,1736305836941,-223.96,0.0001,2]
[348089413,1736305836951,-200.0,0.0001,2]
[348089414,1736305836961,-200.0,0.0001,2]
[348089415,1736305836969,-466.85923204,0.0001,2]
[348089416,1736305836979,-200.0,0.0001,2]
[348089417,1736305836988,-200.0,0.0001,2]
[348089418,1736305836997,-201.06,0.0001,2]
[348089419,1736305837007,-1000.0,0.0001,2]
[348089420,1736305837016,-2000.0,0.0001,2]
[348089421,1736305837026,-200.0,0.0001,2]
[348089422,1736305837035,-157.78777211,0.0001,2]
[348089423,1736305837045,-200.0,0.0001,2]
[348089424,1736305837055,-1005.67800173,0.0001,2]
[348089425,1736305837065,-3000.0,0.0001,2]
[348089426,1736305837074,-1700.0,0.0001,3]
[348089427,1736305837084,-5692.0,0.0001,2]
[348089428,1736305837096,-854.07475838,0.0001,2]
[348089429,1736305837106,-172.17,0.0001,2]
[348089430,1736305837116,-2000.0,0.0001,2]
[348089431,1736305837126,-200.0,0.0001,2]
[348089432,1736305837136,-2828.30020112,0.0001,2]
[348089433,1736305837146,-3184.1738783,0.00010006,2]
[348089434,1736305837155,-1000.0,0.00010013,2]
[348089435,1736305837165,-2828.30020095,0.00010014,2]
[348089436,1736305837174,-150.0,0.00010017,2]
[348089437,1736305837183,-854.0747582,0.00010042,2]
[348089438,1736305837193,-2000.0,0.000101,2]
[348089439,1736305837202,-200.0,0.000101,2]
[348089440,1736305837212,-30000.0,0.000101,2]
[348089441,1736305837221,-200.0,0.000101,2]
[348089442,1736305837231,-2000.0,0.000101,2]
[348089443,1736305837241,-854.0747582,0.00010114,2]
[348089444,1736305837250,-2828.30020095,0.00010121,2]
[348089445,1736305837259,-197.02,0.00010137,2]
[348089446,1736305837268,-326.55,0.00010137,2]
[348089447,1736305837278,-391.87,0.00010137,2]
[348089448,1736305837288,-150.0,0.0001014,2]
[348089449,1736305837297,-429.70395169,0.00010159,2]
[348089450,1736305837306,-1935.08653989,0.0001017,2]
[348089451,1736305837316,-150.0,0.00010182,2]
[348089452,1736305837326,-854.0747582,0.00010186,2]
[348089453,1736305837335,-1497.24090491,0.00010201,2]
[348089454,1736305837347,-200.0,0.00010201,2]
[348089455,1736305837357,-150.0,0.00010207,2]
[348089456,1736305837367,-150.0,0.0001021,2]
[348089457,1736305837376,-2828.30020095,0.00010228,2]
[348089458,1736305837386,-502.40865226,0.0001025,2]
[348089459,1736305837395,-854.0747582,0.00010259,2]
[348089461,1736305837405,-151.0,0.00010264,2]
[348089462,1736305837414,-151.0,0.00010264,2]
[348089463,1736305837424,-151.0,0.00010268,2]
[348089465,1736305837437,-151.0,0.0001027,2]
[348089466,1736305837447,-500.0,0.0001027,2]
[348089467,1736305837456,-635.08,0.0001027,2]
[348089468,1736305837466,-868.59,0.0001027,2]
[348089469,1736305837475,-702.61,0.0001027,2]
[348089470,1736305837485,-1056.62,0.0001027,2]
[348089471,1736305837495,-1000.0,0.0001027,2]
[348089472,1736305837506,-669.13,0.0001027,2]
[348089473,1736305837516,-500.0,0.0001027,2]
[348089474,1736305837527,-1560.5,0.0001027,2]
[348089475,1736305837536,-1216.18,0.0001027,2]
[348089476,1736305837546,-5921.32,0.0001027,2]
[348089477,1736305837555,-6157.34,0.00010271,2]
[348089478,1736305837565,-500.0,0.00010271,2]
[348089479,1736305837575,-3470.32,0.00010271,2]
[348089480,1736305837585,-500.0,0.00010271,2]
[348089481,1736305837597,-718.33,0.00010271,2]
[348089482,1736305837607,-522.93,0.00010271,2]
[348089483,1736305837617,-1039.02,0.00010271,2]
[348089484,1736305837628,-2103.14,0.00010271,2]
[348089485,1736305837637,-760.92,0.00010271,2]
[348089486,1736305837647,-975.82,0.00010271,2]
[348089487,1736305837657,-587.4,0.00010271,2]
[348089488,1736305837667,-1513.87,0.00010271,2]
[348089489,1736305837676,-1071.0,0.00010271,2]
[348089490,1736305837686,-829.04,0.00010271,2]
[348089491,1736305837696,-890.49,0.00010271,2]
[348089492,1736305837706,-500.0,0.00010271,2]
[348089493,1736305837715,-1226.13,0.00010271,2]
[348089494,1736305837725,-500.0,0.00010271,2]
[348089495,1736305837734,-544.24,0.00010271,2]
[348089496,1736305837744,-400.19305495,0.00010271,2]
[348089497,1736305837754,-825.8,0.00010271,2]
[348089498,1736305837763,-500.0,0.00010271,2]
[348089499,1736305837773,-500.0,0.00010271,2]
[348089500,1736305837783,-500.0,0.00010271,2]
[348089501,1736305837792,-569.24029052,0.00010271,2]
[348089502,1736305837801,-500.0,0.00010271,2]
[348089503,1736305837811,-1421.53,0.00010271,2]
[348089504,1736305837820,-2831.21,0.00010271,2]
[348089505,1736305837829,-621.34,0.00010271,2]
[348089506,1736305837839,-587.6,0.00010271,2]
[348089507,1736305837850,-513.20804982,0.00010271,2]
[348089508,1736305837860,-500.0,0.00010271,2]
[348089509,1736305837869,-500.0,0.00010272,2]
[348089510,1736305837879,-151.0,0.00010272,2]
[348089511,1736305837888,-500.0,0.00010272,2]
[348089512,1736305837898,-351.075485,0.00010272,2]
[348089513,1736305837907,-500.0,0.00010272,2]
[348089514,1736305837917,-500.0,0.00010272,2]
[348089515,1736305837926,-514.70203162,0.00010272,2]
[348089516,1736305837936,-500.0,0.00010272,2]
[348089517,1736305837945,-500.0,0.00010272,2]
[348089518,1736305837954,-500.0,0.00010272,2]
[348089519,1736305837964,-500.0,0.00010272,2]
[348089520,1736305837973,-500.0,0.00010272,2]
[348089521,1736305837983,-500.0,0.00010272,2]
[348089522,1736305837992,-620.86559432,0.00010272,2]
[348089523,1736305838001,-500.0,0.00010272,2]
[348089524,1736305838010,-500.0,0.00010272,2]
[348089525,1736305838020,-500.0,0.00010272,2]
[348089526,1736305838029,-500.0,0.00010272,2]
[348089527,1736305838038,-500.0,0.00010272,2]
[348089528,1736305838048,-500.0,0.00010272,2]
[348089529,1736305838057,-594.82,0.00010272,2]
[348089530,1736305838067,-500.0,0.00010272,2]
[348089531,1736305838076,-500.0,0.00010272,2]
[348089532,1736305838086,-500.0,0.00010272,2]
[348089533,1736305838097,-500.0,0.00010272,2]
[348089534,1736305838106,-546.51206916,0.00010272,2]
[348089535,1736305838116,-500.0,0.00010272,2]
[348089536,1736305838126,-500.0,0.00010272,2]
[348089537,1736305838135,-500.0,0.00010272,2]
[348089538,1736305838145,-500.0,0.00010272,2]
[348089539,1736305838155,-500.0,0.00010272,2]
[348089540,1736305838164,-574.07,0.00010272,2]
[348089541,1736305838174,-500.0,0.00010272,2]
[348089542,1736305838183,-500.0,0.00010272,2]
[348089543,1736305838192,-500.0,0.00010272,2]
[348089544,1736305838202,-500.0,0.00010272,2]
[348089545,1736305838211,-500.0,0.00010272,2]
[348089546,1736305838220,-500.0,0.00010272,2]
[348089552,1736305838278,-500.0,0.00010272,2]
[348089553,1736305838287,-500.0,0.00010272,2]
[348089554,1736305838297,-500.0,0.00010272,2]
[348089555,1736305838306,-500.0,0.00010272,2]
[348089556,1736305838316,-500.0,0.00010272,2]
[348089557,1736305838325,-526.27560644,0.00010272,2]
[348089558,1736305838334,-500.0,0.00010272,2]
[348089559,1736305838346,-500.0,0.00010272,2]
[348089560,1736305838355,-500.0,0.00010272,2]
[348089561,1736305838364,-500.0,0.00010272,2]
[348089562,1736305838374,-500.0,0.00010272,2]
[348089563,1736305838384,-500.0,0.00010272,2]
[348089564,1736305838393,-687.5,0.00010272,2]
[348089565,1736305838403,-500.0,0.00010272,2]
[348089566,1736305838412,-500.0,0.00010272,2]
[348089568,1736305838422,-500.0,0.00010272,2]
[348089569,1736305838433,-500.0,0.00010272,2]
[348089570,1736305838444,-500.0,0.00010272,2]
[348089571,1736305838454,-500.0,0.00010272,2]
[348089572,1736305838463,-500.0,0.00010272,2]
[348089573,1736305838472,-589.94,0.00010272,2]
[348089574,1736305838483,-500.0,0.00010272,2]
[348089575,1736305838492,-500.0,0.00010272,2]
[348089576,1736305838501,-500.0,0.00010272,2]
[348089577,1736305838511,-500.0,0.00010272,2]
[348089578,1736305838520,-500.0,0.00010272,2]
[348089579,1736305838529,-500.0,0.00010272,2]
[348089580,1736305838538,-500.0,0.00010272,2]
[348089581,1736305838547,-500.0,0.00010272,2]
[348089582,1736305838556,-500.0,0.00010272,2]
[348089583,1736305838565,-500.0,0.00010272,2]
[348089584,1736305838574,-500.0,0.00010272,2]
[348089585,1736305838584,-500.0,0.00010272,2]
[348089586,1736305838594,-500.0,0.00010272,2]
[348089587,1736305838603,-500.0,0.00010272,2]
[348089588,1736305838612,-500.0,0.00010272,2]
[348089589,1736305838622,-591.34,0.00010272,2]
[348089590,1736305838631,-500.0,0.00010272,2]
[348089591,1736305838641,-362.8059795,0.00010272,2]
[348089592,1736305838650,-500.0,0.00010272,2]
[348089593,1736305838660,-500.0,0.00010272,2]
[348089594,1736305838668,-500.0,0.00010272,2]
[348089595,1736305838677,-317.14101022,0.00010272,2]
[348089596,1736305838686,-500.0,0.00010272,2]
[348089597,1736305838695,-500.0,0.00010272,2]
[348089598,1736305838704,-526.6,0.00010272,2]
[348089599,1736305838713,-500.0,0.00010272,2]
[348089600,1736305838722,-500.0,0.00010272,2]
[348089601,1736305838731,-500.0,0.00010272,2]
[348089602,1736305838740,-515.58,0.00010272,2]
[348089603,1736305838749,-500.0,0.00010272,2]
[348089604,1736305838758,-500.0,0.00010272,2]
[348089605,1736305838767,-500.0,0.00010272,2]
[348089606,1736305838776,-500.0,0.00010272,2]
[348089607,1736305838785,-500.0,0.00010272,2]
[348089608,1736305838794,-500.0,0.00010272,2]
[348089609,1736305838803,-500.0,0.00010272,2]
[348089610,1736305838812,-500.0,0.00010272,2]
[348089611,1736305838821,-500.0,0.00010272,2]
[348089612,1736305838830,-500.0,0.00010272,2]
[348089613,1736305838839,-500.0,0.00010272,2]
[348089614,1736305838849,-500.0,0.00010272,2]
[348089615,1736305838858,-767.5,0.00010272,2]
[348089616,1736305838867,-500.0,0.00010272,2]
[348089617,1736305838876,-500.0,0.00010272,2]
[348089618,1736305838885,-500.0,0.00010272,2]
[348089619,1736305838894,-500.0,0.00010272,2]
[348089620,1736305838904,-500.0,0.00010272,2]
[348089621,1736305838913,-500.0,0.00010272,2]
[348089622,1736305838922,-500.0,0.00010272,2]
[348089623,1736305838931,-500.0,0.00010272,2]
[348089624,1736305838939,-500.0,0.00010272,2]
[348089625,1736305838948,-500.0,0.00010272,2]
[348089626,1736305838958,-500.0,0.00010272,2]
[348089627,1736305838967,-500.0,0.00010272,2]
[348089628,1736305838976,-500.0,0.00010272,2]
[348089629,1736305838985,-500.0,0.00010272,2]
[348089630,1736305838994,-500.0,0.00010272,2]
[348089631,1736305839003,-500.0,0.00010272,2]
[348089632,1736305839012,-1188.13,0.00010272,2]
[348089633,1736305839022,-500.0,0.00010272,2]
[348089634,1736305839031,-500.0,0.00010272,2]
[348089635,1736305839040,-500.0,0.00010272,2]
[348089636,1736305839049,-500.0,0.00010272,2]
[348089637,1736305839059,-500.0,0.00010272,2]
[348089638,1736305839068,-500.0,0.00010272,2]
[348089639,1736305839077,-500.0,0.00010272,2]
[348089640,1736305839086,-500.0,0.00010272,2]
[348089641,1736305839097,-500.0,0.00010272,2]
[348089642,1736305839107,-500.0,0.00010272,2]
[348089643,1736305839116,-500.0,0.00010272,2]
[348089644,1736305839126,-500.0,0.00010272,2]
[348089645,1736305839135,-500.0,0.00010272,2]
[348089646,1736305839144,-880.74,0.00010272,2]
[348089647,1736305839154,-550.22,0.00010272,2]
[348089648,1736305839163,-500.0,0.00010272,2]
[348089649,1736305839172,-500.0,0.00010272,2]
[348089650,1736305839181,-500.0,0.00010272,2]
[348089651,1736305839191,-500.0,0.00010272,2]
[348089652,1736305839200,-500.0,0.00010272,2]
[348089653,1736305839209,-500.0,0.00010272,2]
[348089654,1736305839219,-500.0,0.00010272,2]
[348089655,1736305839228,-500.0,0.00010272,2]
[348089656,1736305839237,-500.0,0.00010272,2]
[348089657,1736305839247,-733.92,0.00010272,2]
[348089658,1736305839256,-500.0,0.00010272,2]
[348089659,1736305839265,-500.0,0.00010272,2]
[348089660,1736305839275,-459.233696,0.00010272,2]
[348089661,1736305839284,-500.0,0.00010272,2]
[348089662,1736305839293,-500.0,0.00010272,2]
[348089663,1736305839303,-500.0,0.00010272,2]
[348089664,1736305839312,-500.0,0.00010272,2]
[348089665,1736305839321,-500.0,0.00010272,2]
[348089666,1736305839330,-500.0,0.00010272,2]
[348089667,1736305839339,-500.0,0.00010272,2]
[348089668,1736305839351,-500.0,0.00010272,2]
[348089669,1736305839361,-500.0,0.00010272,2]
[348089670,1736305839370,-500.0,0.00010272,2]
[348089671,1736305839379,-480.844614,0.00010272,2]
[348089672,1736305839389,-2176.03,0.00010272,2]
[348089673,1736305839398,-500.0,0.00010272,2]
[348089674,1736305839407,-500.0,0.00010272,2]
[348089675,1736305839417,-500.0,0.00010272,2]
[348089676,1736305839427,-500.0,0.00010272,2]
[348089677,1736305839440,-500.0,0.00010272,2]
[348089678,1736305839450,-500.0,0.00010272,2]
[348089679,1736305839460,-500.0,0.00010272,2]
[348089680,1736305839470,-532.42,0.00010272,2]
[348089681,1736305839481,-500.0,0.00010272,2]
[348089682,1736305839491,-500.0,0.00010272,2]
[348089683,1736305839501,-500.0,0.00010272,2]
[348089684,1736305839512,-579.14,0.00010272,2]
[348089685,1736305839522,-500.0,0.00010272,2]
[348089686,1736305839532,-1922.62,0.00010272,2]
[348089687,1736305839541,-500.0,0.00010272,2]
[348089688,1736305839550,-500.0,0.00010272,2]
[348089689,1736305839560,-500.0,0.00010272,2]
[348089690,1736305839570,-654.16,0.00010272,2]
[348089691,1736305839579,-500.0,0.00010272,2]
[348089692,1736305839588,-500.0,0.00010272,2]
[348089693,1736305839600,-500.0,0.00010272,2]
[348089694,1736305839609,-500.0,0.00010272,2]
[348089695,1736305839618,-500.0,0.00010272,2]
[348089696,1736305839627,-1807.66,0.00010272,2]
[348089697,1736305839637,-500.0,0.00010272,2]
[348089698,1736305839646,-500.0,0.00010272,2]
[348089699,1736305839655,-500.0,0.00010272,2]
[348089700,1736305839664,-500.0,0.00010272,2]
[348089701,1736305839674,-599.07,0.00010272,2]
[348089702,1736305839683,-500.0,0.00010272,2]
[348089703,1736305839693,-500.0,0.00010272,2]
[348089704,1736305839702,-500.0,0.00010272,2]
[348089705,1736305839711,-3905.59,0.00010272,2]
[348089707,1736305839720,-500.0,0.00010272,2]
[348089708,1736305839730,-500.0,0.00010272,2]
[348089710,1736305839739,-500.0,0.00010272,2]
[348089712,1736305839748,-500.0,0.00010272,2]
[348089714,1736305839757,-505.818732,0.00010272,2]
[348089715,1736305839766,-589.19,0.00010272,2]